[Event "FTX Crypto Cup MCCT 2022"]
[Site "Miami"]
[Date "2022.08.11"]
[Round "7.3"]
[White "Le, Quang Liem"]
[Black "Niemann, Hans Moke"]
[Result "1/2-1/2"]
[ECO "E52"]
[WhiteElo "2722"]
[BlackElo "2688"]
[Annotator "TA"]
[PlyCount "91"]
[EventDate "2022.08.10"]
[EventType "tourn"]
[EventCountry "USA"]
[SourceTitle "playchess.com"]
[Source "ChessBase"]
[SourceQuality "1"]
[TimeControl "900+10"]

{[%evp 18,91,0,0,0,-24,0,11,12,9,14,8,5,0,0,0,0,16,17,24,27,21,49,51,60,33,40,25,37,36,49,4,30,27,28,15,12,11,8,9,4,0,8,3,5,0,0,0,0,0,0,0,2,0,0,0,12,7,10,0,20,20,20,18,42,12,54,0,0,0,43,0,0,0,47,0]} 1. d4 {[%emt 0:00:00]} Nf6 {[%emt 0:00:00]} 2. c4 {[%emt 0:00:02]} e6 {[%emt 0:00:02]} 3. Nc3 {[%emt 0:00:01]} Bb4 {[%emt 0:01:38]} 4. Nf3 {[%emt 0:00:02]} O-O {[%emt 0:00:05]} 5. e3 {[%emt 0:00:05]} d5 {[%emt 0:00:29]} 6. Bd2 {[%emt 0:00:08]} b6 {[%emt 0:00:17]} 7. cxd5 {[%emt 0:00:03]} exd5 {[%emt 0:00:03]} 8. Bd3 {[%emt 0:00:04]} Bb7 {[%emt 0:00:12]} 9. Rc1 {[%emt 0:00:11]} Nbd7 {[%emt 0:00:09]} 10. O-O {[%emt 0:00:19]} Be7 {[%emt 0:00:08] E52: Nimzo-Indian: Rubinstein: 4...0-0 5 Nf3 d5 6 Bd3 b6.} 11. Ne5 {[%emt 0:01:07] 11.Be1 is vanishing.} c5 {[%emt 0:00:05]} 12. Be1 {[%emt 0:03:05]} cxd4 {[%emt 0:01:21] The position is equal.} 13. Nxd7 {[%emt 0:00:04]} Qxd7 {[%emt 0:00:11]} 14. Nb5 {[%emt 0:00:03]} Rac8 {[%emt 0:02:36] Against Rc7} (14... dxe3 $2 15. Rc7 Qe6 16. Rxb7 $18) 15. Rxc8 {[%emt 0:00:05]} Rxc8 {[%emt 0:00:08]} 16. Nxd4 {[%emt 0:00:01] Strongly threatening Bf5.} Ne4 {[%emt 0:00:12]} 17. f3 {[%emt 0:00:17] [#] Bb5 is the strong threat.} Nc5 $146 {[%emt 0:00:07]} ({Predecessor:} 17... Nd6 18. Bc3 Bf6 19. Qa1 Bg5 20. Re1 Qe7 21. Nc2 Bc6 22. Qc1 a5 23. Qd1 Bd7 {½-½ (39) Schulz,K (2391)-Cusicanqui,M (2412) ICCF email 2018}) 18. Bf5 {[%emt 0:00:40]} Ne6 {[%emt 0:00:02]} 19. Bc3 {[%emt 0:00:01]} Bf8 {[%emt 0:01:49]} 20. f4 {[%emt 0:01:01] Black must now prevent Qg4.} Qe8 {[%emt 0:01:49]} 21. Bxe6 {[%emt 0:05:23]} fxe6 {[%emt 0:00:03]} 22. Qg4 {[%emt 0:00:01]} Bc5 {[%emt 0:00:11]} 23. h3 {[%emt 0:00:29]} Qg6 {[%emt 0:01:36]} 24. Qh4 {[%emt 0:00:03]} Qf6 {[%emt 0:00:15]} 25. Qe1 {[%emt 0:00:43]} Qf7 {[%emt 0:00:53]} 26. Kh2 {[%emt 0:00:45]} Ba6 {[%emt 0:01:45][%cal Bb7a6,Ba6d3,Bd3f5][%mdl 32]} 27. Rf3 {[%emt 0:00:16]} Bd3 {[%emt 0:00:08]} 28. Rg3 {[%emt 0:00:03]} Bf8 {[%emt 0:00:15]} 29. Nf3 {[%emt 0:00:35] [#] And now Ne5 would win.} Bf5 {[%emt 0:00:06]} 30. Qd1 {[%emt 0:00:42]} g6 {[%emt 0:01:17]} 31. Ne5 {[%emt 0:02:08]} ({Don't play} 31. Qd4 Bg7 32. Ne5 Qe8 $11) 31... Qe7 {[%emt 0:00:10]} 32. Rf3 {[%emt 0:00:14]} Bg7 {[%emt 0:00:14]} 33. Rf2 {[%emt 0:00:02]} Be4 {[%emt 0:00:32]} 34. Bd4 {[%emt 0:00:14]} h6 {[%emt 0:00:40]} 35. Ng4 {[%emt 0:00:22]} Kh7 {[%emt 0:00:17]} 36. a3 {[%emt 0:00:22]} Bf5 {[%emt 0:00:26]} 37. Ne5 {[%emt 0:00:10]} g5 {[%emt 0:00:15]} 38. Nf3 {[%emt 0:00:28]} gxf4 {[%emt 0:00:13]} 39. exf4 {[%emt 0:00:11]} Be4 {[%emt 0:00:01]} 40. Bxg7 {[%emt 0:00:27]} Qxg7 {[%emt 0:00:03]} 41. Ne5 {[%emt 0:00:02]} Rg8 {[%emt 0:00:08]} 42. Qg4 {[%emt 0:00:15] Against Qg3+} (42. g4 $14) 42... Qf6 {[%emt 0:00:05]} 43. Qe2 {[%emt 0:00:09]} Qg7 {[%emt 0:00:36]} (43... Rxg2+ $5 44. Rxg2 Qxf4+ 45. Rg3 Qxe5 $11) 44. Qg4 {[%emt 0:00:05] Inhibits Qg3+.} Qf6 {[%emt 0:00:05]} 45. Qe2 {[%emt 0:00:01]} Qg7 {[%emt 0:00:27]} (45... Rxg2+ $11 46. Rxg2 Qxf4+ 47. Rg3 Qxe5) 46. Qg4 {[%emt 0:00:05] Weighted Error Value: White=0.07 (flawless) /Black=0.10 (very precise)} (46. g4 $14) 1/2-1/2

[Event "FTX Crypto Cup MCCT 2022"]
[Site "Miami"]
[Date "2022.08.11"]
[Round "7.4"]
[White "Firouzja, Alireza"]
[Black "Aronian, Levon"]
[Result "1-0"]
[ECO "C65"]
[WhiteElo "2793"]
[BlackElo "2775"]
[Annotator "TA"]
[PlyCount "81"]
[EventDate "2022.08.10"]
[EventType "tourn"]
[EventCountry "USA"]
[SourceTitle "playchess.com"]
[Source "ChessBase"]
[SourceQuality "1"]
[TimeControl "900+10"]

{[%evp 9,81,5,18,21,8,13,16,10,6,0,6,0,0,-7,14,11,5,11,10,7,17,-26,-17,-13,25,0,20,-17,-22,0,0,-24,6,11,102,101,97,94,156,102,214,220,191,180,241,228,262,251,252,231,417,413,392,353,422,431,450,449,431,416,560,537,541,545,588,577,649,646,564,464,417,263,856,493]} 1. e4 {[%emt 0:00:00]} e5 {[%emt 0:00:00]} 2. Nf3 {[%emt 0:00:02]} Nc6 {[%emt 0:00:01]} 3. Bb5 {[%emt 0:00:01]} Nf6 {[%emt 0:00:02]} 4. d3 {[%emt 0:00:12]} Bc5 {[%emt 0:00:01]} 5. c3 {[%emt 0:00:01]} O-O {[%emt 0:00:03]} 6. O-O {[%emt 0:00:04] C65: Ruy Lopez: Berlin Defence (3...Nf6), unusual lines and 4 0-0 Bc5.} Re8 {[%emt 0:00:01]} 7. Bg5 {[%emt 0:00:27]} a6 {[%emt 0:00:02] now scores much better than the old 7...h6.} 8. Bxc6 $5 {[%emt 0:00:43][%mdl 4] The position is equal. A promising side line.} dxc6 {[%emt 0:00:02]} 9. h3 {[%emt 0:00:07] [#]} (9. Re1 {keeps more tension.} Bg4 10. h3 Bh5 11. Qe2) 9... Bf8 $146 {[%emt 0:00:19]} ({Predecessor:} 9... h6 10. Bh4 Bd6 11. Nbd2 b5 12. Re1 c5 13. a4 Bb7 14. Qb3 g5 15. Bg3 Bc6 {½-½ (33) Padmini,R (2454)-Shen,Y (2459) Chengdu 2015}) 10. Qe2 {[%emt 0:00:53]} Qd6 {[%emt 0:00:48]} 11. Nbd2 {[%emt 0:01:01]} Nd7 {[%emt 0:00:02]} 12. Bh4 {[%emt 0:00:49]} a5 {[%emt 0:01:41]} 13. Bg3 {[%emt 0:01:09]} b6 {[%emt 0:00:36][%cal Bb7b6,Bb6b5][%mdl 32]} 14. Nc4 {[%emt 0:00:35]} Qf6 {[%emt 0:00:02]} 15. Nfd2 {[%emt 0:00:26]} b5 {[%emt 0:02:03]} 16. Ne3 {[%emt 0:00:06]} Qd8 {[%emt 0:00:01]} 17. Rad1 {[%emt 0:00:14]} a4 {[%emt 0:00:40]} 18. a3 {[%emt 0:00:54]} Nc5 {[%emt 0:00:29]} 19. Nf3 {[%emt 0:00:40]} f6 {[%emt 0:00:02]} 20. Qc2 {[%emt 0:00:15]} Be6 {[%emt 0:00:08] White must now prevent ...Bb3.} 21. d4 {[%emt 0:00:41]} Nd7 {[%emt 0:00:37]} (21... Bb3 $11 22. dxc5 Bxc2 23. Rxd8 Rexd8 24. Nxc2 Bxc5) 22. c4 $16 {[%emt 0:00:48] White now steadily converts the win.} Qe7 {[%emt 0:02:38]} 23. dxe5 {[%emt 0:00:49]} fxe5 {[%emt 0:00:03]} ({Black should try} 23... Nxe5 24. Nxe5 (24. Bxe5 fxe5 25. Nxe5 bxc4 $16) 24... fxe5) 24. Bxe5 {[%emt 0:00:16]} (24. Nxe5 $6 Nxe5 25. Bxe5 Bxh3 $16) (24. cxb5 $142 Nc5 25. bxc6) 24... Bxh3 {[%emt 0:01:44]} 25. Bxc7 $18 {[%emt 0:00:06] Threatens to win with cxb5.} (25. gxh3 Nxe5 26. Nxe5 Qxe5 $11) 25... Be6 {[%emt 0:00:02]} 26. Bd6 {[%emt 0:01:07]} Qf6 {[%emt 0:00:02]} (26... Qf7 $142 27. Ng5 Qg6) 27. e5 {[%emt 0:00:13]} Qh6 {[%emt 0:00:12]} 28. Nd4 {[%emt 0:01:06]} Bxd6 {[%emt 0:00:36]} 29. exd6 {[%emt 0:00:03]} Ne5 $2 {[%emt 0:00:01] [#]} (29... Qh5 {was worth a try.} 30. cxb5 (30. Nxc6 bxc4 31. Nxc4 Kh8 $18) 30... cxb5 31. Nxe6 Rxe6) 30. cxb5 {[%emt 0:01:12]} cxb5 {[%emt 0:00:01]} 31. Nxe6 {[%emt 0:00:17]} Rxe6 {[%emt 0:00:51]} 32. f4 {[%emt 0:00:25]} Nf7 {[%emt 0:00:30]} 33. Nf5 {[%emt 0:00:19][%cal Be3f5,Bf5e7,Be7d5,Bd5c3][%mdl 32]} Qf6 {[%emt 0:00:02][%cal Rf7d6]} 34. Ne7+ {[%emt 0:00:46]} Kh8 {[%emt 0:00:03] [#]} 35. Nd5 $1 {[%emt 0:00:02]} Qh4 {[%emt 0:00:02]} 36. Qf5 {[%emt 0:00:33][%csl LRe6,LRf7]} Re2 {[%emt 0:01:09]} 37. Nc3 {[%emt 0:00:07] Active counter play!} ({Less strong is} 37. Qxf7 Qg3 38. Ne3 Qxe3+ 39. Kh2 Qe4 $16) 37... Re3 {[%emt 0:00:01]} 38. d7 {[%emt 0:00:19]} ({And not} 38. Qxf7 Rh3 39. gxh3 Qg3+ 40. Kh1 Qxh3+ 41. Kg1 Qg3+ 42. Kh1 Qh3+ 43. Kg1 Qg3+ 44. Kh1 Qh3+ $11) 38... Kg8 {[%emt 0:00:22]} 39. Nxb5 {[%emt 0:01:13]} Rd8 {[%emt 0:01:13]} 40. Nd4 {[%emt 0:00:22]} Nh6 $2 {[%emt 0:01:13]} (40... g6) 41. Qg5 {[%emt 0:00:14] Weighted Error Value: White=0.13 (very precise) /Black=0.35} 1-0

[Event "FTX Crypto Cup MCCT 2022"]
[Site "Miami"]
[Date "2022.08.11"]
[Round "7.4"]
[White "Niemann, Hans Moke"]
[Black "Le, Quang Liem"]
[Result "0-1"]
[ECO "C54"]
[WhiteElo "2688"]
[BlackElo "2722"]
[Annotator "TA"]
[PlyCount "144"]
[EventDate "2022.08.10"]
[EventType "tourn"]
[EventCountry "USA"]
[SourceTitle "playchess.com"]
[Source "ChessBase"]
[SourceQuality "1"]
[TimeControl "900+10"]

{[%evp 12,143,18,19,20,22,14,0,0,0,28,28,29,25,21,21,27,25,27,19,26,11,11,19,27,27,28,27,22,16,8,17,52,23,31,18,16,10,13,8,16,18,0,0,0,0,0,0,-3,-14,0,-22,-3,-78,-70,-74,-60,-73,-41,-71,-91,-119,-127,-119,-105,-108,-95,-59,-79,-127,-128,-131,-131,-131,-131,-160,-160,-168,-168,-168,-168,-168,-168,-159,-156,-155,-87,-95,0,-149,-69,-88,-89,-191,-185,-486,-601,-366,-347,-340,-312,-2474,-1923,-904,-652,-2935,-2605,-2198,-2555,-2555,-1575,-1260,-1253,-465,-240,-928,-233,-1154,-1160,-1075,-543,-361,-273,-12835,-12835,-12836,-12836,-12833,-12832,-29992,-29993,-29998,-29999,-29999]} 1. e4 {[%emt 0:00:00]} e5 {[%emt 0:00:00]} 2. Nf3 {[%emt 0:00:04]} Nc6 {[%emt 0:00:01]} 3. Bc4 {[%emt 0:00:00]} Nf6 {[%emt 0:00:01]} 4. d3 {[%emt 0:00:02]} Bc5 {[%emt 0:00:01]} 5. O-O {[%emt 0:00:02]} d6 {[%emt 0:00:04]} 6. c3 {[%emt 0:00:01]} O-O {[%emt 0:00:02]} 7. Re1 {[%emt 0:00:02]} Bb6 {[%emt 0:00:02] C54: Giuoco Piano: 4 c3 Nf6, main lines with 5 d4 and 5 d3.} 8. h3 {[%emt 0:00:02]} Ne7 {[%emt 0:00:02]} 9. a4 {[%emt 0:00:31][%cal Ba2a4,Ba4a5][%mdl 32] 9.d4 gains popularity.} c6 {[%emt 0:00:10] The position is equal.} 10. d4 {[%emt 0:00:02]} Ng6 {[%emt 0:00:01]} 11. dxe5 {[%emt 0:00:00] [#]} Nxe5 $146 {[%emt 0:00:04]} ({Predecessor:} 11... dxe5 12. Qxd8 Rxd8 13. a5 Bc7 14. g3 h6 15. Kg2 Kf8 16. Nbd2 Ke8 17. b4 Ke7 {1-0 (65) Liang,J (2460)-Ngo,B (2298) Schaumburg 2022}) 12. Nxe5 {[%emt 0:00:03]} dxe5 {[%emt 0:00:00]} 13. Qxd8 {[%emt 0:00:02]} Rxd8 {[%emt 0:00:05]} 14. a5 {[%emt 0:00:10]} Bc7 {[%emt 0:00:01][%cal Of6e4]} 15. Nd2 {[%emt 0:00:41]} Bd7 {[%emt 0:00:17]} 16. b4 {[%emt 0:00:42]} b5 {[%emt 0:00:20]} 17. Ba2 {[%emt 0:01:13]} c5 {[%emt 0:00:45]} 18. bxc5 {[%emt 0:00:40]} Bc6 {[%emt 0:00:05] Against Bd5} 19. Bb1 {[%emt 0:00:09]} Rab8 {[%emt 0:02:29]} 20. Nb3 {[%emt 0:00:11]} b4 {[%emt 0:00:06] Against Ba3} 21. c4 {[%emt 0:00:10]} Bd7 {[%emt 0:00:18]} 22. Be3 {[%emt 0:00:25][%cal Oc5c6]} Be6 {[%emt 0:00:44]} 23. Rc1 {[%emt 0:00:03]} a6 $1 {[%emt 0:00:02]} 24. Kh2 {[%emt 0:06:33]} h6 {[%emt 0:02:26]} 25. Ra4 {[%emt 0:00:30]} Bd7 {[%emt 0:01:13]} 26. Ra2 {[%emt 0:00:05]} Bc6 {[%emt 0:00:01]} 27. f3 {[%emt 0:00:10]} Nh5 {[%emt 0:00:01][%cal Bf6h5,Bh5f4,Bf4e2][%mdl 32]} 28. Rd2 {[%emt 0:00:55]} Rxd2 {[%emt 0:00:05]} 29. Bxd2 {[%emt 0:00:03]} Nf4 {[%emt 0:04:10]} 30. Bc2 {[%emt 0:00:03]} Ne2 $36 {[%emt 0:00:41][%mdl 2048] Black has the initiative.} 31. Ra1 {[%emt 0:00:29]} f5 {[%emt 0:02:02]} 32. Re1 {[%emt 0:01:44]} (32. exf5 $11 {keeps the balance.} e4+ 33. f4 Nxf4 34. Bxf4 Bxf4+ 35. Kg1) 32... Nd4 $1 $17 {[%emt 0:00:24]} 33. Nxd4 {[%emt 0:00:05]} exd4+ {[%emt 0:00:00]} 34. e5 {[%emt 0:00:01]} Bxa5 {[%emt 0:00:01][%cal Ob4b3]} 35. Bxf5 {[%emt 0:01:08]} Bc7 {[%emt 0:00:04]} 36. Be6+ {[%emt 0:00:01]} Kf8 {[%emt 0:00:11][%mdl 1024] Black has strong compensation.} 37. Bd5 {[%emt 0:00:00]} Be8 {[%emt 0:00:06] Threatens to win with ...b3.} 38. Bc1 {[%emt 0:00:43]} Bg6 {[%emt 0:00:48]} 39. Bb2 {[%emt 0:00:10]} b3 {[%emt 0:00:08]} 40. f4 {[%emt 0:00:18]} (40. Kg1 $142) 40... Bc2 $1 {[%emt 0:00:29]} 41. Bxd4 {[%emt 0:01:12]} b2 {[%emt 0:00:00]} 42. Bxb2 {[%emt 0:00:01]} Rxb2 {[%emt 0:00:00]} 43. Re2 {[%emt 0:00:19]} Ra2 $1 {[%emt 0:00:02]} 44. Bb7 {[%emt 0:00:22][%cal Ob7a6]} g5 $1 {[%emt 0:01:30]} 45. fxg5 {[%emt 0:01:33]} hxg5 {[%emt 0:00:00]} 46. Bxa6 {[%emt 0:00:07]} Rxa6 {[%emt 0:00:48]} 47. Rxc2 {[%emt 0:00:02]} Bxe5+ $19 {[%emt 0:00:00][%mdl 4096] Endgame KRB-KR} 48. Kg1 {[%emt 0:00:01] [#]} Bd4+ {[%emt 0:00:06]} (48... Bg3 $142 $1 49. Rc1 Ke7) 49. Kh2 {[%emt 0:00:04]} Be5+ {[%emt 0:00:26]} (49... Ra3 $142 50. Rd2 Be5+ 51. Kg1 Kf7) 50. Kg1 $1 $17 {[%emt 0:00:03] [#]} Ke7 {[%emt 0:00:37]} ({Black should play} 50... Bg3 $1 $17 {( -> ...Ra1+)} 51. Rc1 Ke7) 51. Kf2 $15 {[%emt 0:00:09]} Ra3 {[%emt 0:00:04] And now ...Bd4+ would win. Black is more active.} 52. Re2 {[%emt 0:00:23]} (52. Ke2 $17 {was worth a try.}) 52... Kf6 $19 {[%emt 0:00:07]} 53. Rc2 $2 {[%emt 0:00:23]} (53. Ke1 {is more resistant.}) 53... Bd4+ {[%emt 0:00:14]} 54. Ke2 {[%emt 0:00:05]} Bxc5 {[%emt 0:00:02]} 55. Rd2 {[%emt 0:00:06]} Re3+ {[%emt 0:00:26]} 56. Kf1 $2 {[%emt 0:00:17]} (56. Kd1) 56... Rc3 {[%emt 0:00:04]} 57. Rd5 {[%emt 0:00:11]} Rxc4 {[%emt 0:00:06] aiming for ...Rf4+.} 58. g3 {[%emt 0:00:11] Inhibits Rf4+.} Be7 {[%emt 0:00:16]} 59. Kg2 {[%emt 0:00:20]} Ke6 {[%emt 0:00:02]} 60. Rd3 {[%emt 0:00:02]} Bd6 {[%emt 0:00:08]} 61. Kf3 {[%emt 0:00:03]} Bc5 {[%emt 0:00:11]} 62. Rd1 {[%emt 0:00:43]} Ke5 {[%emt 0:00:24]} (62... Ra4 $142 {Strongly threatening ...Bd6.} 63. Re1+ Kf5 64. g4+ Kg6) 63. Rd3 $2 {[%emt 0:00:35]} (63. Rd7) 63... Bb4 $2 {[%emt 0:00:32]} (63... Bd6 64. Ke2 Ra4) 64. Rd1 $2 {[%emt 0:00:11]} (64. Re3+ Kf5 65. Rd3) 64... Bd6 {[%emt 0:00:14]} 65. Rd3 {[%emt 0:00:03]} Ke6 {[%emt 0:00:01]} 66. Rb3 {[%emt 0:00:14]} Kf5 {[%emt 0:00:09] Hoping for ...Bc5.} 67. Rb5+ $2 {[%emt 0:00:04]} (67. Rd3 Be5 68. Re3) 67... Bc5 {[%emt 0:00:07]} 68. Rb3 {[%emt 0:00:04]} Rc2 {[%emt 0:00:02][%csl Gc5][%cal Rc2f2]} 69. g4+ {[%emt 0:00:05]} Ke5 {[%emt 0:00:03]} 70. Kg3 {[%emt 0:00:07]} Ke4 {[%emt 0:00:09][%cal Rc5d6] Black mates.} 71. h4 {[%emt 0:00:27]} Bd6+ {[%emt 0:00:02]} 72. Kh3 {[%emt 0:00:02]} Rh2# {[%emt 0:00:00] Weighted Error Value: White=0.39/Black=0.15 (very precise)} 0-1

[Event "FTX Crypto Cup MCCT 2022"]
[Site "Miami"]
[Date "2022.08.11"]
[Round "7.4"]
[White "Praggnanandhaa R"]
[Black "Carlsen, Magnus"]
[Result "1-0"]
[ECO "A40"]
[WhiteElo "2648"]
[BlackElo "2864"]
[Annotator "TA"]
[PlyCount "101"]
[EventDate "2022.08.10"]
[EventType "tourn"]
[EventCountry "USA"]
[SourceTitle "playchess.com"]
[Source "ChessBase"]
[SourceQuality "1"]
[TimeControl "900+10"]

{[%evp 9,101,29,36,29,45,41,47,41,50,-17,-17,-13,-10,-47,-54,-61,-71,-81,-80,-97,-50,-37,-39,-50,0,0,0,0,3,-52,-46,-17,-12,-14,0,0,0,0,0,0,0,0,0,0,0,0,0,0,0,0,0,0,0,0,0,0,8,0,0,0,0,0,8,8,8,8,8,8,144,139,369,353,783,790,462,777,762,442,695,728,740,708,696,593,682,689,609,511,640,410,504,480,1018,949]} 1. d4 {[%emt 0:00:00]} e6 {[%emt 0:00:00]} 2. c4 {[%emt 0:00:10]} Bb4+ {[%emt 0:00:04]} 3. Bd2 {[%emt 0:00:02]} Bxd2+ {[%emt 0:00:03]} 4. Qxd2 {[%emt 0:00:01]} f5 {[%emt 0:00:02]} 5. Nc3 {[%emt 0:00:10]} Nf6 {[%emt 0:00:09]} 6. e3 {[%emt 0:00:23] A40: Unusual replies to 1 d4.} d6 {[%emt 0:00:05]} 7. Bd3 {[%emt 0:00:09]} e5 {[%emt 0:00:37]} 8. Nge2 {[%emt 0:00:26] [#] White is slightly better.} c5 $146 {[%emt 0:00:10]} ({Predecessor:} 8... O-O 9. O-O Nc6 10. Rab1 Nb4 11. f3 {½-½ (11) Palac,M (2521)-Tratar,M (2424) Trieste 2021}) 9. d5 {[%emt 0:00:35]} ({White should try} 9. O-O $14) 9... e4 $11 {[%emt 0:00:14]} 10. Bc2 {[%emt 0:00:02]} Nbd7 {[%emt 0:00:01]} 11. Ba4 {[%emt 0:01:59]} O-O {[%emt 0:00:02]} 12. Bxd7 {[%emt 0:00:04]} Nxd7 {[%emt 0:00:02]} 13. h4 {[%emt 0:02:26]} Ne5 {[%emt 0:00:02]} 14. b3 {[%emt 0:00:10]} Nd3+ {[%emt 0:00:25]} (14... Bd7 $17 15. a4 a6) 15. Kf1 $15 {[%emt 0:00:01]} Qf6 {[%emt 0:00:02]} 16. Nf4 {[%emt 0:00:10]} b5 {[%emt 0:01:18]} (16... Nxf4 $15 17. exf4 b5 18. cxb5 a6 19. bxa6 Bxa6+ 20. Kg1 Rab8) 17. Nxd3 $11 {[%emt 0:01:41]} exd3 {[%emt 0:00:02]} 18. cxb5 {[%emt 0:00:05]} (18. Qxd3 $2 b4 19. g3 bxc3 $19) 18... a6 $1 {[%emt 0:00:01]} 19. Rd1 {[%emt 0:01:56]} (19. Qxd3 $2 axb5 20. Re1 b4 $19) (19. bxa6 $11 Bxa6 20. g3) 19... axb5 {[%emt 0:00:13]} 20. Nxb5 {[%emt 0:00:02]} f4 {[%emt 0:00:01]} 21. exf4 {[%emt 0:00:43]} Bg4 {[%emt 0:02:08]} 22. f3 {[%emt 0:00:23]} Bf5 {[%emt 0:01:57]} 23. Kf2 {[%emt 0:00:47]} Rfe8 {[%emt 0:00:32] Hoping for ...Re2+.} 24. Nc3 {[%emt 0:01:46] Inhibits Re2+.} h5 {[%emt 0:00:08] Prevents g4.} 25. Rde1 {[%emt 0:00:46]} Rxe1 {[%emt 0:00:07]} 26. Rxe1 {[%emt 0:00:02]} (26. Qxe1 $2 {loses.} Qd4+ 27. Kg3 d2 $19) 26... Qxh4+ {[%emt 0:00:09]} 27. Kg1 {[%emt 0:00:02]} Qf6 {[%emt 0:00:35]} 28. Nb5 {[%emt 0:01:07]} h4 {[%emt 0:00:17]} 29. a4 {[%emt 0:00:17]} c4 {[%emt 0:00:05]} 30. bxc4 {[%emt 0:00:09] Black must now prevent a5.} Rxa4 {[%emt 0:00:01]} 31. Rc1 {[%emt 0:00:13]} Kh7 {[%emt 0:00:23]} 32. Kh2 {[%emt 0:00:13]} Bg6 {[%emt 0:00:56][%cal Oa4a2]} 33. Rc3 {[%emt 0:00:40]} Ra2 {[%emt 0:03:53]} 34. Qxa2 {[%emt 0:00:22]} Qxf4+ {[%emt 0:00:02]} 35. Kh1 {[%emt 0:01:20] Qf2 is the strong threat.} d2 {[%emt 0:00:07][%cal Rd2d1]} 36. Qa1 {[%emt 0:00:03] And now Qd1 would win.} Qe5 {[%emt 0:02:55] [#] Threatens to win with ...Qe1+.} 37. Rc1 {[%emt 0:00:04] Inhibits Qe1+.} dxc1=R+ {[%emt 0:00:05]} (37... dxc1=Q+ 38. Qxc1) 38. Qxc1 {[%emt 0:00:01][%mdl 4096] Endgame KQB-KQN} Bd3 {[%emt 0:00:01]} (38... Qg3 $11) 39. Qd2 $1 $16 {[%emt 0:00:31]} Bf5 {[%emt 0:02:57] A mistake that costs the game.} (39... Bg6 $16) 40. Qg5 $1 $18 {[%emt 0:00:41]} h3 $2 {[%emt 0:00:20] [#]} (40... Qe1+ 41. Kh2 g6) 41. Nxd6 $1 {[%emt 0:00:15][%mdl 512]} hxg2+ {[%emt 0:00:02]} 42. Kg1 {[%emt 0:00:00]} ({But not} 42. Kxg2 $2 Bh3+ 43. Kxh3 Qxg5 $19) 42... Qe1+ {[%emt 0:00:28]} 43. Kxg2 {[%emt 0:00:02]} Qe2+ {[%emt 0:00:01]} (43... Bd3 $142 44. Ne4 Qf1+ 45. Kg3 Qg1+ 46. Kf4 Qc1+ 47. Kg4 Qg1+ 48. Kf5 Qf2) 44. Kg3 {[%emt 0:00:23]} Qe5+ {[%emt 0:00:06] [#]} 45. Kf2 $1 {[%emt 0:00:04]} Qb2+ {[%emt 0:00:07]} 46. Kg1 {[%emt 0:00:07]} Qd4+ {[%emt 0:00:16]} 47. Kg2 {[%emt 0:00:04]} Qb2+ {[%emt 0:00:03]} 48. Kh1 {[%emt 0:00:06] Qh5+ would kill now.} Bd3 {[%emt 0:00:07]} 49. Qe3 {[%emt 0:00:27]} Bf1 {[%emt 0:00:14][%csl Gf1][%cal Rb2g2]} 50. Qg1 {[%emt 0:00:12] Against Qg2+} Qc1 {[%emt 0:00:24]} (50... Be2 $142 51. Qg4 Qc1+ 52. Kh2 Bd3) 51. Nf5 {[%emt 0:00:20] Weighted Error Value: White=0.09 (flawless) /Black=0.30} 1-0